[Event "Titled Tuesday Blitz February 07 Early 2023"]
[White "ritanovikova"]
[Black "Andrews, Todd"]
[BlackFideId "2012456"]
[WhiteElo "2202"]
[BlackElo "2220"]
[Result "0-1"]
[Round "11"]
[TimeControl "180+2"]
[Date "2023.02.07"]
[WhiteClock "0:00:05"]
[BlackClock "0:00:25"]

1. e4 {[%clk 0:02:59]}  c5 {[%clk 0:02:59]} 2. Nc3 {[%clk 0:02:59]}  d6 {[%clk 0:02:59]} 3. d3 {[%clk 0:02:59]}  g6 {[%clk 0:02:58]} 4. Be3 {[%clk 0:02:59]}  Bg7 {[%clk 0:02:58]} 5. Qd2 {[%clk 0:02:59]}  Nc6 {[%clk 0:02:59]} 6. g3 {[%clk 0:02:59]}  Nd4 {[%clk 0:02:58]} 7. Nd1 {[%clk 0:02:58]}  h5 {[%clk 0:02:55]} 8. c3 {[%clk 0:02:58]}  Nc6 {[%clk 0:02:55]} 9. h4 {[%clk 0:02:59]}  Bd7 {[%clk 0:02:51]} 10. Bg2 {[%clk 0:02:59]}  Qc8 {[%clk 0:02:51]} 11. Ne2 {[%clk 0:02:57]}  b5 {[%clk 0:02:49]} 12. d4 {[%clk 0:02:55]}  cxd4 {[%clk 0:02:41]} 13. cxd4 {[%clk 0:02:56]}  Nf6 {[%clk 0:02:26]} 14. Rc1 {[%clk 0:02:52]}  Qa6 {[%clk 0:02:25]} 15. a3 {[%clk 0:02:19]}  Ng4 {[%clk 0:02:22]} 16. O-O {[%clk 0:02:09]}  O-O {[%clk 0:02:19]} 17. Ndc3 {[%clk 0:01:57]}  Nxe3 {[%clk 0:02:12]} 18. Qxe3 {[%clk 0:01:56]}  b4 {[%clk 0:02:10]} 19. Nd5 {[%clk 0:01:52]}  Rab8 {[%clk 0:01:58]} 20. axb4 {[%clk 0:01:48]}  e6 {[%clk 0:01:57]} 21. Ndc3 {[%clk 0:01:15]}  Rxb4 {[%clk 0:01:56]} 22. d5 {[%clk 0:00:52]}  exd5 {[%clk 0:01:51]} 23. exd5 {[%clk 0:00:45]}  Ne5 {[%clk 0:01:51]} 24. Ra1 {[%clk 0:00:36]}  Qb6 {[%clk 0:01:31]} 25. Qxb6 {[%clk 0:00:33]}  axb6 {[%clk 0:01:31]} 26. Ra2 {[%clk 0:00:31]}  Nd3 {[%clk 0:01:18]} 27. Rb1 {[%clk 0:00:26]}  Rc8 {[%clk 0:01:15]} 28. Be4 {[%clk 0:00:20]}  Bf5 {[%clk 0:00:55]} 29. Bxf5 {[%clk 0:00:18]}  gxf5 {[%clk 0:00:56]} 30. Kf1 {[%clk 0:00:12]}  Bxc3 {[%clk 0:00:48]} 31. Nxc3 {[%clk 0:00:11]}  Rxc3 {[%clk 0:00:47]} 32. Ra8+ {[%clk 0:00:10]}  Kg7 {[%clk 0:00:47]} 33. Ke2 {[%clk 0:00:10]}  Rxb2+ {[%clk 0:00:41]} 34. Rxb2 {[%clk 0:00:07]}  Nxb2 {[%clk 0:00:42]} 35. Kd2 {[%clk 0:00:08]}  Rc5 {[%clk 0:00:42]} 36. Rb8 {[%clk 0:00:07]}  Rxd5+ {[%clk 0:00:40]} 37. Kc3 {[%clk 0:00:07]}  Na4+ {[%clk 0:00:38]} 38. Kc4 {[%clk 0:00:07]}  Rc5+ {[%clk 0:00:38]} 39. Kb4 {[%clk 0:00:07]}  b5 {[%clk 0:00:36]} 40. Rd8 {[%clk 0:00:06]}  Rd5 {[%clk 0:00:32]} 41. f4 {[%clk 0:00:06]}  Nb2 {[%clk 0:00:30]} 42. Kb3 {[%clk 0:00:06]}  Nd3 {[%clk 0:00:30]} 43. Kc3 {[%clk 0:00:05]}  Nf2 {[%clk 0:00:29]} 44. Rd7 {[%clk 0:00:04]}  Ne4+ {[%clk 0:00:29]} 45. Kb4 {[%clk 0:00:03]}  Nxg3 {[%clk 0:00:29]} 46. Ka5 {[%clk 0:00:04]}  Ne2 {[%clk 0:00:29]} 47. Kb6 {[%clk 0:00:04]}  Nxf4 {[%clk 0:00:30]} 48. Kc7 {[%clk 0:00:04]}  b4 {[%clk 0:00:30]} 49. Kd8 {[%clk 0:00:04]}  b3 {[%clk 0:00:27]} 50. Ke8 {[%clk 0:00:04]}  Re5+ {[%clk 0:00:28]} 51. Kd8 {[%clk 0:00:04]}  b2 {[%clk 0:00:27]} 52. Rb7 {[%clk 0:00:05]}  Re2 {[%clk 0:00:26]} 53. Kd7 {[%clk 0:00:04]}  Nd5 {[%clk 0:00:25]} 54. Kxd6 {[%clk 0:00:04]}  Nc3 {[%clk 0:00:25]} 55. Kd7 {[%clk 0:00:02]}  b1=Q {[%clk 0:00:24]} 56. Rxb1 {[%clk 0:00:02]}  Nxb1 {[%clk 0:00:25]} 57. Kc8 {[%clk 0:00:02]}  Kf6 {[%clk 0:00:25]} 58. Kb7 {[%clk 0:00:03]}  Ke6 {[%clk 0:00:26]} 59. Ka6 {[%clk 0:00:03]}  Kd6 {[%clk 0:00:26]} 60. Kb5 {[%clk 0:00:04]}  Kd5 {[%clk 0:00:26]} 61. Ka4 {[%clk 0:00:05]}  Rb2 {[%clk 0:00:26]} 62. Ka5 {[%clk 0:00:05]}  Kc5 {[%clk 0:00:26]} 63. Ka4 {[%clk 0:00:05]}  f4 {[%clk 0:00:25]} 0-1


[Site "https://www.chess.com"]

[Event "Titled Tuesday Blitz February 07 Early 2023"]
[White "Adithya A Chullikkad"]
[Black "Sanchez, Robert"]
[WhiteFideId "45078734"]
[BlackFideId "2034360"]
[WhiteElo "2259"]
[BlackElo "1966"]
[Result "0-1"]
[Round "11"]
[TimeControl "180+2"]
[Date "2023.02.07"]
[WhiteClock "0:01:14"]
[BlackClock "0:01:08"]

1. d4 {[%clk 0:03:00]}  e6 {[%clk 0:02:59]} 2. Bf4 {[%clk 0:02:55]}  d5 {[%clk 0:02:59]} 3. c3 {[%clk 0:02:56]}  Nf6 {[%clk 0:02:59]} 4. e3 {[%clk 0:02:56]}  Bd6 {[%clk 0:02:59]} 5. Bg3 {[%clk 0:02:55]}  Nc6 {[%clk 0:02:56]} 6. Nf3 {[%clk 0:02:55]}  Qe7 {[%clk 0:02:55]} 7. Nbd2 {[%clk 0:02:55]}  e5 {[%clk 0:02:52]} 8. dxe5 {[%clk 0:02:54]}  Nxe5 {[%clk 0:02:51]} 9. Nxe5 {[%clk 0:02:54]}  Bxe5 {[%clk 0:02:52]} 10. Bxe5 {[%clk 0:02:53]}  Qxe5 {[%clk 0:02:52]} 11. Nf3 {[%clk 0:02:53]}  Qe7 {[%clk 0:02:52]} 12. Nd4 {[%clk 0:02:52]}  c6 {[%clk 0:02:51]} 13. Bd3 {[%clk 0:02:51]}  O-O {[%clk 0:02:51]} 14. O-O {[%clk 0:02:51]}  Qe5 {[%clk 0:02:49]} 15. Qb3 {[%clk 0:02:44]}  Qc7 {[%clk 0:02:46]} 16. Qc2 {[%clk 0:02:37]}  a6 {[%clk 0:02:36]} 17. Bf5 {[%clk 0:02:08]}  c5 {[%clk 0:02:23]} 18. Bxc8 {[%clk 0:02:04]}  cxd4 {[%clk 0:02:19]} 19. Bf5 {[%clk 0:01:59]}  dxc3 {[%clk 0:02:18]} 20. Qxc3 {[%clk 0:01:57]}  Qd6 {[%clk 0:02:07]} 21. Rac1 {[%clk 0:01:52]}  g6 {[%clk 0:02:06]} 22. Bd3 {[%clk 0:01:48]}  Ng4 {[%clk 0:01:54]} 23. g3 {[%clk 0:01:39]}  Ne5 {[%clk 0:01:53]} 24. Be2 {[%clk 0:01:38]}  Nc6 {[%clk 0:01:42]} 25. Rfd1 {[%clk 0:01:37]}  Rfd8 {[%clk 0:01:41]} 26. Qb3 {[%clk 0:01:32]}  Rab8 {[%clk 0:01:37]} 27. Bf3 {[%clk 0:01:31]}  Qe5 {[%clk 0:01:29]} 28. Bxd5 {[%clk 0:01:28]}  Na5 {[%clk 0:01:27]} 29. Bxf7+ {[%clk 0:01:28]}  Kg7 {[%clk 0:01:21]} 30. Qb6 {[%clk 0:01:15]}  Rxd1+ {[%clk 0:01:18]} 31. Rxd1 {[%clk 0:01:16]}  Kxf7 {[%clk 0:01:09]} 32. Qxa5 {[%clk 0:01:14]}  Qxa5 {[%clk 0:01:08]} 0-1


[Site "https://www.chess.com"]

[Event "Titled Tuesday Blitz February 07 Early 2023"]
[White "Mushini Ajay"]
[Black "Ordekalog"]
[WhiteFideId "35066188"]
[WhiteElo "2310"]
[BlackElo "2555"]
[Result "0-1"]
[Round "11"]
[TimeControl "180+2"]
[Date "2023.02.07"]
[WhiteClock "0:00:10"]
[BlackClock "0:00:20"]

1. e4 {[%clk 0:02:35]}  d5 {[%clk 0:02:58]} 2. exd5 {[%clk 0:02:32]}  Qxd5 {[%clk 0:02:57]} 3. Nc3 {[%clk 0:02:32]}  Qa5 {[%clk 0:02:57]} 4. d4 {[%clk 0:02:33]}  Nf6 {[%clk 0:02:57]} 5. Bc4 {[%clk 0:02:32]}  Bg4 {[%clk 0:02:56]} 6. Nf3 {[%clk 0:02:30]}  Nc6 {[%clk 0:02:54]} 7. Bd2 {[%clk 0:02:28]}  Qf5 {[%clk 0:02:47]} 8. d5 {[%clk 0:02:24]}  Bxf3 {[%clk 0:02:30]} 9. gxf3 {[%clk 0:01:54]}  Nd4 {[%clk 0:02:28]} 10. Nb5 {[%clk 0:01:23]}  Nxf3+ {[%clk 0:02:18]} 11. Kf1 {[%clk 0:01:22]}  Qh3+ {[%clk 0:02:10]} 12. Ke2 {[%clk 0:01:21]}  O-O-O {[%clk 0:02:08]} 13. Nxa7+ {[%clk 0:01:10]}  Kb8 {[%clk 0:02:07]} 14. Be3 {[%clk 0:01:10]}  Qg4 {[%clk 0:01:55]} 15. Bb3 {[%clk 0:00:59]}  Ne4 {[%clk 0:01:47]} 16. h3 {[%clk 0:00:49]}  Qh5 {[%clk 0:01:41]} 17. Kf1 {[%clk 0:00:46]}  e6 {[%clk 0:01:36]} 18. Nb5 {[%clk 0:00:39]}  Bc5 {[%clk 0:01:29]} 19. Bxc5 {[%clk 0:00:29]}  Nxc5 {[%clk 0:01:29]} 20. Nd4 {[%clk 0:00:29]}  Nxb3 {[%clk 0:01:01]} 21. axb3 {[%clk 0:00:28]}  Qxd5 {[%clk 0:01:00]} 22. Qxf3 {[%clk 0:00:22]}  Qxd4 {[%clk 0:01:00]} 23. Kg2 {[%clk 0:00:20]}  Qd5 {[%clk 0:00:51]} 24. Rhd1 {[%clk 0:00:19]}  Qxf3+ {[%clk 0:00:50]} 25. Kxf3 {[%clk 0:00:19]}  c6 {[%clk 0:00:42]} 26. Ke4 {[%clk 0:00:16]}  Kc7 {[%clk 0:00:41]} 27. c3 {[%clk 0:00:15]}  Rd5 {[%clk 0:00:39]} 28. Rxd5 {[%clk 0:00:15]}  cxd5+ {[%clk 0:00:38]} 29. Kd4 {[%clk 0:00:15]}  Kd6 {[%clk 0:00:37]} 30. Ra7 {[%clk 0:00:14]}  e5+ {[%clk 0:00:36]} 31. Kd3 {[%clk 0:00:15]}  Kc6 {[%clk 0:00:36]} 32. c4 {[%clk 0:00:15]}  d4 {[%clk 0:00:34]} 33. b4 {[%clk 0:00:15]}  f5 {[%clk 0:00:33]} 34. f4 {[%clk 0:00:12]}  exf4 {[%clk 0:00:32]} 35. Kxd4 {[%clk 0:00:12]}  Rd8+ {[%clk 0:00:30]} 36. Ke5 {[%clk 0:00:13]}  f3 {[%clk 0:00:30]} 37. Ra3 {[%clk 0:00:12]}  Re8+ {[%clk 0:00:23]} 38. Kxf5 {[%clk 0:00:12]}  Rf8+ {[%clk 0:00:23]} 39. Ke6 {[%clk 0:00:11]}  f2 {[%clk 0:00:22]} 40. b5+ {[%clk 0:00:12]}  Kc5 {[%clk 0:00:21]} 41. Ke7 {[%clk 0:00:12]}  Rf4 {[%clk 0:00:21]} 42. Rf3 {[%clk 0:00:10]}  Rxf3 {[%clk 0:00:20]} 0-1


[Site "https://www.chess.com"]

[Event "Titled Tuesday Blitz February 07 Early 2023"]
[White "Mrudul Dehankar"]
[Black "Jimenez, Joaquin"]
[WhiteFideId "25096990"]
[BlackFideId "109860"]
[WhiteElo "2030"]
[BlackElo "2195"]
[Result "1-0"]
[Round "11"]
[TimeControl "180+2"]
[Date "2023.02.07"]
[WhiteClock "0:00:02"]
[BlackClock "0:00:18"]

1. e4 {[%clk 0:03:00]}  e6 {[%clk 0:02:59]} 2. d4 {[%clk 0:02:59]}  d5 {[%clk 0:02:58]} 3. e5 {[%clk 0:02:59]}  c5 {[%clk 0:02:57]} 4. c3 {[%clk 0:03:00]}  Nc6 {[%clk 0:02:56]} 5. Nf3 {[%clk 0:03:00]}  Nh6 {[%clk 0:02:56]} 6. Bd3 {[%clk 0:02:58]}  cxd4 {[%clk 0:02:54]} 7. O-O {[%clk 0:02:55]}  Nf5 {[%clk 0:02:53]} 8. Bxf5 {[%clk 0:02:53]}  exf5 {[%clk 0:02:53]} 9. cxd4 {[%clk 0:02:53]}  Be6 {[%clk 0:02:53]} 10. Nc3 {[%clk 0:02:54]}  Be7 {[%clk 0:02:52]} 11. a3 {[%clk 0:02:39]}  O-O {[%clk 0:02:51]} 12. b4 {[%clk 0:02:38]}  Rc8 {[%clk 0:02:50]} 13. Bd2 {[%clk 0:02:34]}  a6 {[%clk 0:02:48]} 14. Rc1 {[%clk 0:02:26]}  Na7 {[%clk 0:02:47]} 15. Qb3 {[%clk 0:02:23]}  Rc4 {[%clk 0:02:46]} 16. Na4 {[%clk 0:02:18]}  b5 {[%clk 0:02:44]} 17. Nb2 {[%clk 0:02:18]}  Nc8 {[%clk 0:02:37]} 18. Nxc4 {[%clk 0:02:16]}  dxc4 {[%clk 0:02:38]} 19. Qe3 {[%clk 0:02:09]}  Nb6 {[%clk 0:02:37]} 20. Ne1 {[%clk 0:02:01]}  Nd5 {[%clk 0:02:37]} 21. Qf3 {[%clk 0:01:58]}  Qd7 {[%clk 0:02:24]} 22. Nc2 {[%clk 0:01:55]}  Rd8 {[%clk 0:02:19]} 23. Ne3 {[%clk 0:01:54]}  Nb6 {[%clk 0:02:13]} 24. Bc3 {[%clk 0:01:50]}  g6 {[%clk 0:02:13]} 25. Rfd1 {[%clk 0:01:47]}  Bg5 {[%clk 0:02:10]} 26. Qg3 {[%clk 0:01:09]}  Bh6 {[%clk 0:01:58]} 27. Qh4 {[%clk 0:01:03]}  Bxe3 {[%clk 0:01:48]} 28. fxe3 {[%clk 0:01:02]}  Nd5 {[%clk 0:01:48]} 29. Qh6 {[%clk 0:00:20]}  Qe7 {[%clk 0:01:40]} 30. Be1 {[%clk 0:00:18]}  Qf8 {[%clk 0:01:36]} 31. Qxf8+ {[%clk 0:00:15]}  Kxf8 {[%clk 0:01:36]} 32. Kf2 {[%clk 0:00:16]}  Nb6 {[%clk 0:01:31]} 33. Kf3 {[%clk 0:00:15]}  Bd5+ {[%clk 0:01:31]} 34. Kg3 {[%clk 0:00:13]}  Be4 {[%clk 0:01:31]} 35. h3 {[%clk 0:00:13]}  Nd5 {[%clk 0:01:31]} 36. Kf2 {[%clk 0:00:12]}  h6 {[%clk 0:01:29]} 37. g3 {[%clk 0:00:09]}  g5 {[%clk 0:01:28]} 38. Ke2 {[%clk 0:00:09]}  Kg7 {[%clk 0:01:27]} 39. Bf2 {[%clk 0:00:09]}  Kg6 {[%clk 0:01:27]} 40. g4 {[%clk 0:00:09]}  f4 {[%clk 0:01:21]} 41. exf4 {[%clk 0:00:10]}  Nxf4+ {[%clk 0:01:21]} 42. Ke3 {[%clk 0:00:10]}  Bd5 {[%clk 0:01:19]} 43. h4 {[%clk 0:00:10]}  Ng2+ {[%clk 0:01:15]} 44. Ke2 {[%clk 0:00:10]}  gxh4 {[%clk 0:01:15]} 45. Rg1 {[%clk 0:00:09]}  h3 {[%clk 0:01:14]} 46. Bg3 {[%clk 0:00:06]}  Kg5 {[%clk 0:01:10]} 47. Rcf1 {[%clk 0:00:04]}  Kxg4 {[%clk 0:01:09]} 48. Bh2 {[%clk 0:00:05]}  h5 {[%clk 0:01:06]} 49. Rf4+ {[%clk 0:00:04]}  Kg5 {[%clk 0:01:05]} 50. Rf6 {[%clk 0:00:03]}  Be6 {[%clk 0:00:55]} 51. Bf4+ {[%clk 0:00:01]}  Kg4 {[%clk 0:00:55]} 52. Be3 {[%clk 0:00:02]}  h4 {[%clk 0:00:50]} 53. Rf4+ {[%clk 0:00:02]}  Kh5 {[%clk 0:00:48]} 54. Rf3 {[%clk 0:00:02]}  Rg8 {[%clk 0:00:47]} 55. Bf2 {[%clk 0:00:02]}  Bg4 {[%clk 0:00:45]} 56. Rh1 {[%clk 0:00:01]}  Bxf3+ {[%clk 0:00:45]} 57. Kxf3 {[%clk 0:00:02]}  Rg5 {[%clk 0:00:40]} 58. Rxh3 {[%clk 0:00:02]}  Rg4 {[%clk 0:00:31]} 59. Rh2 {[%clk 0:00:03]}  Nf4 {[%clk 0:00:31]} 60. Bxh4 {[%clk 0:00:03]}  Rxh4 {[%clk 0:00:25]} 61. Rxh4+ {[%clk 0:00:03]}  Kxh4 {[%clk 0:00:25]} 62. Kxf4 {[%clk 0:00:03]}  Kh5 {[%clk 0:00:25]} 63. d5 {[%clk 0:00:03]}  Kg6 {[%clk 0:00:18]} 64. d6 {[%clk 0:00:03]}  c3 {[%clk 0:00:19]} 65. Ke3 {[%clk 0:00:03]}  Kf5 {[%clk 0:00:18]} 66. d7 {[%clk 0:00:03]}  Kxe5 {[%clk 0:00:18]} 67. d8=Q {[%clk 0:00:02]} 1-0


[Site "https://www.chess.com"]

[Event "Titled Tuesday Blitz February 07 Early 2023"]
[White "JonSnowNW1"]
[Black "Ronka, Erik"]
[BlackFideId "505080"]
[WhiteElo "2329"]
[BlackElo "2276"]
[Result "0-1"]
[Round "11"]
[TimeControl "180+2"]
[Date "2023.02.07"]
[WhiteClock "0:00:10"]
[BlackClock "0:00:18"]

1. c4 {[%clk 0:03:00]}  c5 {[%clk 0:02:54]} 2. Nc3 {[%clk 0:02:56]}  e6 {[%clk 0:02:47]} 3. e4 {[%clk 0:02:55]}  d6 {[%clk 0:02:37]} 4. g3 {[%clk 0:02:52]}  b6 {[%clk 0:02:36]} 5. Bg2 {[%clk 0:02:49]}  Bb7 {[%clk 0:02:36]} 6. Nge2 {[%clk 0:02:45]}  Nd7 {[%clk 0:02:34]} 7. O-O {[%clk 0:02:40]}  Ngf6 {[%clk 0:02:28]} 8. d3 {[%clk 0:02:39]}  Be7 {[%clk 0:02:27]} 9. h3 {[%clk 0:02:27]}  Qc7 {[%clk 0:02:15]} 10. f4 {[%clk 0:02:17]}  O-O {[%clk 0:02:14]} 11. g4 {[%clk 0:02:08]}  h6 {[%clk 0:02:02]} 12. Ng3 {[%clk 0:01:53]}  Nh7 {[%clk 0:02:01]} 13. f5 {[%clk 0:01:51]}  Ne5 {[%clk 0:01:58]} 14. Bf4 {[%clk 0:01:47]}  a6 {[%clk 0:01:53]} 15. Qd2 {[%clk 0:01:40]}  b5 {[%clk 0:01:07]} 16. b3 {[%clk 0:01:37]}  b4 {[%clk 0:01:05]} 17. Nce2 {[%clk 0:01:35]}  a5 {[%clk 0:01:05]} 18. Be3 {[%clk 0:01:10]}  a4 {[%clk 0:01:00]} 19. fxe6 {[%clk 0:01:09]}  fxe6 {[%clk 0:01:00]} 20. Nf4 {[%clk 0:01:10]}  Qd7 {[%clk 0:00:58]} 21. Ngh5 {[%clk 0:00:43]}  Bh4 {[%clk 0:00:41]} 22. d4 {[%clk 0:00:40]}  cxd4 {[%clk 0:00:38]} 23. Bxd4 {[%clk 0:00:40]}  Bg5 {[%clk 0:00:31]} 24. Bxe5 {[%clk 0:00:40]}  Rad8 {[%clk 0:00:26]} 25. Bxg7 {[%clk 0:00:30]}  Rf7 {[%clk 0:00:26]} 26. h4 {[%clk 0:00:15]}  Bxh4 {[%clk 0:00:25]} 27. Bxh6 {[%clk 0:00:15]}  e5 {[%clk 0:00:24]} 28. Nd5 {[%clk 0:00:13]}  Qxg4 {[%clk 0:00:22]} 29. Qd1 {[%clk 0:00:10]}  Qg6 {[%clk 0:00:19]} 30. Rxf7 {[%clk 0:00:09]}  Kxf7 {[%clk 0:00:19]} 31. Qf3+ {[%clk 0:00:10]}  Kg8 {[%clk 0:00:19]} 32. Rf1 {[%clk 0:00:06]}  Ng5 {[%clk 0:00:13]} 33. Nhf6+ {[%clk 0:00:04]}  Kh8 {[%clk 0:00:13]} 34. Qg4 {[%clk 0:00:04]}  Bc8 {[%clk 0:00:11]} 35. Qh5 {[%clk 0:00:03]}  Qxh5 {[%clk 0:00:03]} 36. Nxh5 {[%clk 0:00:03]}  Kh7 {[%clk 0:00:04]} 37. Bxg5 {[%clk 0:00:03]}  Bxg5 {[%clk 0:00:05]} 38. Nhf6+ {[%clk 0:00:04]}  Kg6 {[%clk 0:00:05]} 39. Ng4 {[%clk 0:00:02]}  Bxg4 {[%clk 0:00:05]} 40. Bf3 {[%clk 0:00:03]}  Be6 {[%clk 0:00:03]} 41. Nxb4 {[%clk 0:00:03]}  axb3 {[%clk 0:00:03]} 42. axb3 {[%clk 0:00:04]}  Rb8 {[%clk 0:00:04]} 43. Nd5 {[%clk 0:00:04]}  Rxb3 {[%clk 0:00:05]} 44. Bd1 {[%clk 0:00:04]}  Rd3 {[%clk 0:00:05]} 45. Be2 {[%clk 0:00:04]}  Rd2 {[%clk 0:00:05]} 46. Rf2 {[%clk 0:00:05]}  Bxd5 {[%clk 0:00:05]} 47. cxd5 {[%clk 0:00:04]}  Be3 {[%clk 0:00:05]} 48. Kf1 {[%clk 0:00:05]}  Bxf2 {[%clk 0:00:05]} 49. Kxf2 {[%clk 0:00:05]}  Rd4 {[%clk 0:00:06]} 50. Ke3 {[%clk 0:00:06]}  Kg5 {[%clk 0:00:07]} 51. Bd3 {[%clk 0:00:06]}  Ra4 {[%clk 0:00:08]} 52. Be2 {[%clk 0:00:06]}  Ra3+ {[%clk 0:00:09]} 53. Bd3 {[%clk 0:00:06]}  Kg4 {[%clk 0:00:09]} 54. Kd2 {[%clk 0:00:06]}  Kg3 {[%clk 0:00:10]} 55. Ke3 {[%clk 0:00:06]}  Kg2 {[%clk 0:00:09]} 56. Kd2 {[%clk 0:00:06]}  Rb3 {[%clk 0:00:09]} 57. Ke3 {[%clk 0:00:07]}  Kg3 {[%clk 0:00:09]} 58. Kd2 {[%clk 0:00:07]}  Kf4 {[%clk 0:00:10]} 59. Ke2 {[%clk 0:00:07]}  Rb2+ {[%clk 0:00:09]} 60. Kd1 {[%clk 0:00:07]}  Ke3 {[%clk 0:00:10]} 61. Kc1 {[%clk 0:00:07]}  Rb4 {[%clk 0:00:09]} 62. Bc2 {[%clk 0:00:06]}  Rxe4 {[%clk 0:00:10]} 63. Bxe4 {[%clk 0:00:06]}  Kxe4 {[%clk 0:00:11]} 64. Kd2 {[%clk 0:00:06]}  Kxd5 {[%clk 0:00:12]} 65. Kd3 {[%clk 0:00:06]}  e4+ {[%clk 0:00:12]} 66. Ke3 {[%clk 0:00:06]}  Ke5 {[%clk 0:00:13]} 67. Kd2 {[%clk 0:00:06]}  d5 {[%clk 0:00:14]} 68. Ke2 {[%clk 0:00:07]}  d4 {[%clk 0:00:14]} 69. Kd2 {[%clk 0:00:07]}  Kf4 {[%clk 0:00:15]} 70. Ke2 {[%clk 0:00:07]}  e3 {[%clk 0:00:16]} 71. Kd3 {[%clk 0:00:07]}  Kf3 {[%clk 0:00:16]} 72. Kc2 {[%clk 0:00:06]}  e2 {[%clk 0:00:17]} 73. Kd2 {[%clk 0:00:07]}  Kf2 {[%clk 0:00:18]} 74. Kc2 {[%clk 0:00:07]}  e1=Q {[%clk 0:00:19]} 75. Kb2 {[%clk 0:00:08]}  d3 {[%clk 0:00:19]} 76. Ka2 {[%clk 0:00:08]}  d2 {[%clk 0:00:19]} 77. Kb2 {[%clk 0:00:08]}  d1=Q {[%clk 0:00:18]} 78. Ka2 {[%clk 0:00:09]}  Qed2+ {[%clk 0:00:18]} 79. Ka3 {[%clk 0:00:09]}  Q1c1+ {[%clk 0:00:17]} 80. Ka4 {[%clk 0:00:09]}  Qa1+ {[%clk 0:00:17]} 81. Kb5 {[%clk 0:00:09]}  Qb1+ {[%clk 0:00:16]} 82. Kc4 {[%clk 0:00:09]}  Qdc2+ {[%clk 0:00:16]} 83. Kd5 {[%clk 0:00:09]}  Qbd1+ {[%clk 0:00:17]} 84. Ke5 {[%clk 0:00:09]}  Qce2+ {[%clk 0:00:18]} 85. Kf5 {[%clk 0:00:09]}  Qd5+ {[%clk 0:00:18]} 86. Kf4 {[%clk 0:00:10]}  Qee4# {[%clk 0:00:18]} 0-1


[Site "https://www.chess.com"]

[Event "Titled Tuesday Blitz February 07 Early 2023"]
[White "Chakravarthi Reddy, M"]
[Black "Forgacs, Attila Jr."]
[WhiteFideId "25009532"]
[BlackFideId "773654"]
[WhiteElo "2279"]
[BlackElo "2264"]
[Result "0-1"]
[Round "11"]
[TimeControl "180+2"]
[Date "2023.02.07"]
[WhiteClock "0:01:23"]
[BlackClock "0:01:37"]

1. e4 {[%clk 0:03:00]}  e5 {[%clk 0:02:59]} 2. Nf3 {[%clk 0:03:00]}  Nc6 {[%clk 0:03:00]} 3. Bc4 {[%clk 0:03:00]}  Nf6 {[%clk 0:03:00]} 4. d3 {[%clk 0:03:00]}  h6 {[%clk 0:03:00]} 5. Nbd2 {[%clk 0:02:59]}  d6 {[%clk 0:03:00]} 6. c3 {[%clk 0:02:59]}  g5 {[%clk 0:03:00]} 7. Nf1 {[%clk 0:02:53]}  d5 {[%clk 0:03:00]} 8. exd5 {[%clk 0:02:53]}  Nxd5 {[%clk 0:03:01]} 9. Bxd5 {[%clk 0:02:53]}  Qxd5 {[%clk 0:03:01]} 10. Ne3 {[%clk 0:02:54]}  Qd8 {[%clk 0:02:50]} 11. O-O {[%clk 0:02:54]}  Bg7 {[%clk 0:02:50]} 12. Re1 {[%clk 0:02:52]}  O-O {[%clk 0:02:50]} 13. Qe2 {[%clk 0:02:51]}  f5 {[%clk 0:02:50]} 14. Nd2 {[%clk 0:02:50]}  Be6 {[%clk 0:02:45]} 15. Ndc4 {[%clk 0:02:42]}  Qf6 {[%clk 0:02:43]} 16. Nf1 {[%clk 0:02:38]}  Bxc4 {[%clk 0:02:34]} 17. dxc4 {[%clk 0:02:37]}  e4 {[%clk 0:02:35]} 18. Ng3 {[%clk 0:02:37]}  Rae8 {[%clk 0:02:33]} 19. Nh5 {[%clk 0:02:37]}  Qg6 {[%clk 0:02:32]} 20. Nxg7 {[%clk 0:02:38]}  Kxg7 {[%clk 0:02:30]} 21. Be3 {[%clk 0:02:36]}  f4 {[%clk 0:02:27]} 22. Bd4+ {[%clk 0:02:30]}  Nxd4 {[%clk 0:02:26]} 23. cxd4 {[%clk 0:02:30]}  e3 {[%clk 0:02:13]} 24. fxe3 {[%clk 0:02:26]}  Rxe3 {[%clk 0:02:12]} 25. Qf2 {[%clk 0:02:26]}  Rfe8 {[%clk 0:02:11]} 26. Rxe3 {[%clk 0:02:24]}  Rxe3 {[%clk 0:02:05]} 27. Re1 {[%clk 0:02:24]}  Qe4 {[%clk 0:02:03]} 28. Rxe3 {[%clk 0:02:24]}  fxe3 {[%clk 0:02:02]} 29. Qe1 {[%clk 0:02:14]}  Qxd4 {[%clk 0:01:54]} 30. Qc3 {[%clk 0:02:14]}  c5 {[%clk 0:01:53]} 31. Kf1 {[%clk 0:02:14]}  Kf6 {[%clk 0:01:50]} 32. Ke2 {[%clk 0:02:14]}  Kf5 {[%clk 0:01:39]} 33. Qxe3 {[%clk 0:01:38]}  Qxc4+ {[%clk 0:01:39]} 34. Qd3+ {[%clk 0:01:28]}  Qxd3+ {[%clk 0:01:37]} 35. Kxd3 {[%clk 0:01:28]}  b5 {[%clk 0:01:37]} 36. a4 {[%clk 0:01:28]}  a6 {[%clk 0:01:37]} 37. axb5 {[%clk 0:01:23]}  axb5 {[%clk 0:01:38]} 38. Kc3 {[%clk 0:01:23]}  Ke4 {[%clk 0:01:37]} 0-1


[Site "https://www.chess.com"]

[Event "Titled Tuesday Blitz February 07 Early 2023"]
[White "Ansh M Shah"]
[Black "Schut, Han"]
[WhiteFideId "25033379"]
[BlackFideId "1005561"]
[WhiteElo "2171"]
[BlackElo "2101"]
[Result "1-0"]
[Round "11"]
[TimeControl "180+2"]
[Date "2023.02.07"]
[WhiteClock "0:00:11"]
[BlackClock "0:00:08"]

1. d4 {[%clk 0:02:57]}  Nf6 {[%clk 0:02:53]} 2. c4 {[%clk 0:02:58]}  g6 {[%clk 0:02:53]} 3. h4 {[%clk 0:02:43]}  d5 {[%clk 0:02:43]} 4. cxd5 {[%clk 0:02:15]}  Nxd5 {[%clk 0:02:39]} 5. h5 {[%clk 0:02:13]}  c5 {[%clk 0:02:34]} 6. hxg6 {[%clk 0:02:10]}  fxg6 {[%clk 0:02:33]} 7. dxc5 {[%clk 0:02:01]}  Nc6 {[%clk 0:02:23]} 8. Nf3 {[%clk 0:01:41]}  Bg7 {[%clk 0:02:17]} 9. e4 {[%clk 0:00:39]}  Ndb4 {[%clk 0:02:16]} 10. Qxd8+ {[%clk 0:00:39]}  Nxd8 {[%clk 0:02:15]} 11. Na3 {[%clk 0:00:39]}  Be6 {[%clk 0:01:56]} 12. Bb5+ {[%clk 0:00:37]}  Ndc6 {[%clk 0:01:47]} 13. O-O {[%clk 0:00:36]}  O-O-O {[%clk 0:00:49]} 14. Bc4 {[%clk 0:00:30]}  Bxc4 {[%clk 0:00:41]} 15. Nxc4 {[%clk 0:00:31]}  Nc2 {[%clk 0:00:41]} 16. Rb1 {[%clk 0:00:30]}  N2d4 {[%clk 0:00:41]} 17. Nxd4 {[%clk 0:00:28]}  Nxd4 {[%clk 0:00:42]} 18. Be3 {[%clk 0:00:24]}  Kb8 {[%clk 0:00:34]} 19. Rfd1 {[%clk 0:00:21]}  e5 {[%clk 0:00:29]} 20. b4 {[%clk 0:00:19]}  Rd7 {[%clk 0:00:19]} 21. Rd2 {[%clk 0:00:18]}  Rhd8 {[%clk 0:00:18]} 22. Rbd1 {[%clk 0:00:19]}  a6 {[%clk 0:00:17]} 23. a3 {[%clk 0:00:18]}  h6 {[%clk 0:00:16]} 24. Nb6 {[%clk 0:00:19]}  Rf7 {[%clk 0:00:14]} 25. Nd5 {[%clk 0:00:19]}  g5 {[%clk 0:00:12]} 26. Nc3 {[%clk 0:00:12]}  Rdf8 {[%clk 0:00:11]} 27. Ne2 {[%clk 0:00:10]}  Nxe2+ {[%clk 0:00:08]} 28. Rxe2 {[%clk 0:00:11]}  Kc7 {[%clk 0:00:08]} 29. Red2 {[%clk 0:00:11]}  Rd7 {[%clk 0:00:08]} 30. Rxd7+ {[%clk 0:00:11]} 1-0


[Site "https://www.chess.com"]